[Event "Late-Titled-Tuesday-Blitz-May-14-2024"]
[Site "Chess.com"]
[Date "2024.05.14"]
[Round "10"]
[White "HipsterChess22"]
[Black "Walter_White_Poland"]
[Result "0-1"]
[WhiteElo "2189"]
[BlackElo "2376"]
[TimeControl "180+1"]
[EndTime "15:55:27 PDT"]
[Termination "Walter_White_Poland won by checkmate"]

1. d4 {[%clk 0:03:00]} 1... d5 {[%clk 0:02:59.6]} 2. Nc3 {[%clk 0:02:59.8]} 2...
Nf6 {[%clk 0:02:57.5]} 3. Bf4 {[%clk 0:03:00.1]} 3... a6 {[%clk 0:02:56.3]} 4.
e3 {[%clk 0:02:58.5]} 4... b5 {[%clk 0:02:54.7]} 5. Bd3 {[%clk 0:02:40.1]} 5...
Bb7 {[%clk 0:02:54.2]} 6. Nce2 {[%clk 0:02:35.4]} 6... Nbd7 {[%clk 0:02:49.1]}
7. Nf3 {[%clk 0:02:34.4]} 7... c5 {[%clk 0:02:48.4]} 8. c3 {[%clk 0:02:32.7]}
8... g6 {[%clk 0:02:38.4]} 9. O-O {[%clk 0:02:30.7]} 9... Bg7 {[%clk 0:02:38.2]}
10. h3 {[%clk 0:02:30.9]} 10... O-O {[%clk 0:02:37.9]} 11. Ne5 {[%clk
0:02:22.7]} 11... Nxe5 {[%clk 0:02:33.9]} 12. Bxe5 {[%clk 0:02:23.6]} 12... Nd7
{[%clk 0:02:31.1]} 13. Bxg7 {[%clk 0:02:22.1]} 13... Kxg7 {[%clk 0:02:32]} 14.
f4 {[%clk 0:02:13.2]} 14... f5 {[%clk 0:02:26.4]} 15. Kh1 {[%clk 0:02:07.2]}
15... e6 {[%clk 0:02:26.2]} 16. Ng1 {[%clk 0:02:06.4]} 16... Qe7 {[%clk
0:02:22.4]} 17. Nf3 {[%clk 0:02:06.2]} 17... h6 {[%clk 0:02:22.3]} 18. Rg1
{[%clk 0:01:58.8]} 18... h5 {[%clk 0:02:10.6]} 19. Qe1 {[%clk 0:01:55.2]} 19...
Rh8 {[%clk 0:02:09.6]} 20. Qh4 {[%clk 0:01:44.5]} 20... Qxh4 {[%clk 0:02:07.7]}
21. Nxh4 {[%clk 0:01:45.4]} 21... Nf6 {[%clk 0:01:58.9]} 22. Nf3 {[%clk
0:01:44.9]} 22... Ne4 {[%clk 0:01:57.9]} 23. Bxe4 {[%clk 0:01:44.7]} 23... dxe4
{[%clk 0:01:57.9]} 24. Ne5 {[%clk 0:01:43.1]} 24... Rac8 {[%clk 0:01:53.4]} 25.
Rgc1 {[%clk 0:01:40.7]} 25... h4 {[%clk 0:01:43.9]} 26. Kg1 {[%clk 0:01:38.6]}
26... Rc7 {[%clk 0:01:40.7]} 27. Rc2 {[%clk 0:01:38]} 27... Rhc8 {[%clk
0:01:39.3]} 28. Rd2 {[%clk 0:01:25.9]} 28... cxd4 {[%clk 0:01:33.5]} 29. cxd4
{[%clk 0:01:26.8]} 29... Bd5 {[%clk 0:01:25.2]} 30. b3 {[%clk 0:01:22.8]} 30...
b4 {[%clk 0:01:07.4]} 31. Kf2 {[%clk 0:01:22.1]} 31... a5 {[%clk 0:01:06.9]} 32.
Ke2 {[%clk 0:01:20.6]} 32... Rc3 {[%clk 0:01:05.4]} 33. Rb1 {[%clk 0:01:06.4]}
33... R8c7 {[%clk 0:00:56.5]} 34. Kf2 {[%clk 0:00:58.4]} 34... Kf6 {[%clk
0:00:54.8]} 35. Ke2 {[%clk 0:00:58.5]} 35... g5 {[%clk 0:00:52]} 36. fxg5+
{[%clk 0:00:54.3]} 36... Kxg5 {[%clk 0:00:51.9]} 37. Rf1 {[%clk 0:00:49.7]}
37... a4 {[%clk 0:00:43.3]} 38. Rb1 {[%clk 0:00:48.3]} 38... axb3 {[%clk
0:00:42]} 39. axb3 {[%clk 0:00:46.5]} 39... Bxb3 {[%clk 0:00:41.3]} 40. Rdb2
{[%clk 0:00:41.3]} 40... Rc2+ {[%clk 0:00:40.4]} 41. Kf1 {[%clk 0:00:29.9]}
41... Rxb2 {[%clk 0:00:31.3]} 42. Rxb2 {[%clk 0:00:30.8]} 42... Rc3 {[%clk
0:00:30.4]} 43. Nc6 {[%clk 0:00:18.6]} 43... Rxe3 {[%clk 0:00:25.6]} 44. Nxb4
{[%clk 0:00:15.8]} 44... Bd5 {[%clk 0:00:24.1]} 45. Nxd5 {[%clk 0:00:13.3]}
45... exd5 {[%clk 0:00:23.9]} 46. Rb5 {[%clk 0:00:11.9]} 46... Rd3 {[%clk
0:00:15.6]} 47. Rxd5 {[%clk 0:00:12.8]} 47... Kf4 {[%clk 0:00:15.6]} 48. Rd8
{[%clk 0:00:11.1]} 48... Rd2 {[%clk 0:00:12.1]} 49. Kg1 {[%clk 0:00:10.2]} 49...
e3 {[%clk 0:00:10.7]} 50. Kf1 {[%clk 0:00:10.4]} 50... Ke4 {[%clk 0:00:08.8]}
51. Ra8 {[%clk 0:00:07.5]} 51... Rxd4 {[%clk 0:00:07.7]} 52. Ke2 {[%clk
0:00:06.4]} 52... Rd2+ {[%clk 0:00:07.6]} 53. Kf1 {[%clk 0:00:07]} 53... Rc2
{[%clk 0:00:07.1]} 54. Ra4+ {[%clk 0:00:06.1]} 54... Kd3 {[%clk 0:00:07.1]} 55.
Ra3+ {[%clk 0:00:05.9]} 55... Rc3 {[%clk 0:00:07.5]} 56. Ra1 {[%clk 0:00:05.3]}
56... f4 {[%clk 0:00:07.3]} 57. Rd1+ {[%clk 0:00:04.8]} 57... Ke4 {[%clk
0:00:07.1]} 58. Ke2 {[%clk 0:00:04.8]} 58... Rc2+ {[%clk 0:00:07.1]} 59. Ke1
{[%clk 0:00:04.8]} 59... Rxg2 {[%clk 0:00:06.8]} 60. Rd8 {[%clk 0:00:05.7]}
60... Kf3 {[%clk 0:00:06.8]} 61. Rd3 {[%clk 0:00:01.8]} 61... Rg1# {[%clk
0:00:06.5]} 0-1

[Event "Late-Titled-Tuesday-Blitz-May-14-2024"]
[Site "Chess.com"]
[Date "2024.05.14"]
[Round "10"]
[White "Individoom"]
[Black "VacheH009"]
[Result "1-0"]
[WhiteElo "2771"]
[BlackElo "2539"]
[TimeControl "180+1"]
[EndTime "15:55:30 PDT"]
[Termination "Individoom won by resignation"]

1. e4 {[%clk 0:03:00.9]} 1... e5 {[%clk 0:02:56.8]} 2. Nf3 {[%clk 0:03:00]} 2...
Nc6 {[%clk 0:02:56.9]} 3. d4 {[%clk 0:02:59.7]} 3... exd4 {[%clk 0:02:56.1]} 4.
Bc4 {[%clk 0:03:00.3]} 4... Nf6 {[%clk 0:02:54.8]} 5. O-O {[%clk 0:02:50.3]}
5... Nxe4 {[%clk 0:02:54.1]} 6. Re1 {[%clk 0:02:50.3]} 6... d5 {[%clk
0:02:54.6]} 7. Bxd5 {[%clk 0:02:50.9]} 7... Qxd5 {[%clk 0:02:55.1]} 8. Nc3
{[%clk 0:02:51.5]} 8... Qd7 {[%clk 0:02:55.6]} 9. Nxe4 {[%clk 0:02:51.1]} 9...
Be7 {[%clk 0:02:55.6]} 10. Bg5 {[%clk 0:02:37.8]} 10... O-O {[%clk 0:02:54.5]}
11. Bxe7 {[%clk 0:02:37.4]} 11... Qxe7 {[%clk 0:02:55.4]} 12. Nxd4 {[%clk
0:02:36.7]} 12... Bd7 {[%clk 0:02:55.3]} 13. Qh5 {[%clk 0:02:23.7]} 13... Rae8
{[%clk 0:02:45]} 14. Nf3 {[%clk 0:02:17]} 14... Qb4 {[%clk 0:02:18.1]} 15. Qd5
{[%clk 0:00:58.3]} 15... Be6 {[%clk 0:01:54.3]} 16. Qd3 {[%clk 0:00:55.4]} 16...
Bc4 {[%clk 0:01:09.1]} 17. Qc3 {[%clk 0:00:46.6]} 17... Bd5 {[%clk 0:01:02.2]}
18. Nc5 {[%clk 0:00:37.4]} 18... Qxc3 {[%clk 0:00:59.6]} 19. bxc3 {[%clk
0:00:37.4]} 19... b6 {[%clk 0:00:53.5]} 20. Na6 {[%clk 0:00:36.9]} 20... Bxf3
{[%clk 0:00:29.2]} 21. gxf3 {[%clk 0:00:36.6]} 21... Rxe1+ {[%clk 0:00:28.5]}
22. Rxe1 {[%clk 0:00:36]} 22... Rc8 {[%clk 0:00:29.4]} 23. Nxc7 {[%clk
0:00:32.8]} 23... g6 {[%clk 0:00:28.6]} 24. Nb5 {[%clk 0:00:29.9]} 24... a6
{[%clk 0:00:22.1]} 25. Nd6 {[%clk 0:00:29.1]} 25... Rd8 {[%clk 0:00:21.9]} 26.
Ne4 {[%clk 0:00:28.9]} 26... Kg7 {[%clk 0:00:19.3]} 27. Kg2 {[%clk 0:00:28.3]}
27... Ne5 {[%clk 0:00:18.4]} 28. a4 {[%clk 0:00:22]} 28... Nc4 {[%clk 0:00:16]}
29. Rb1 {[%clk 0:00:18.4]} 29... f5 {[%clk 0:00:09.8]} 30. Ng5 {[%clk 0:00:18]}
30... Rd2 {[%clk 0:00:09.7]} 31. Rb4 {[%clk 0:00:15.6]} 31... Ne3+ {[%clk
0:00:09.6]} 32. Kg3 {[%clk 0:00:15.7]} 32... Nd5 {[%clk 0:00:06]} 33. Rd4 {[%clk
0:00:14.3]} 33... Rxd4 {[%clk 0:00:05.8]} 34. cxd4 {[%clk 0:00:14.7]} 34... Nc3
{[%clk 0:00:03.7]} 35. Ne6+ {[%clk 0:00:14.7]} 35... Kf6 {[%clk 0:00:03.3]} 36.
Nc7 {[%clk 0:00:15]} 36... a5 {[%clk 0:00:01.9]} 37. Kf4 {[%clk 0:00:13.1]}
37... Nxa4 {[%clk 0:00:01.9]} 38. Ke3 {[%clk 0:00:12.9]} 38... Nb2 {[%clk
0:00:00.8]} 39. Nd5+ {[%clk 0:00:10.6]} 39... Ke6 {[%clk 0:00:00.4]} 40. Nxb6
{[%clk 0:00:11.5]} 40... Kd6 {[%clk 0:00:00.9]} 41. Kd2 {[%clk 0:00:11.3]} 41...
a4 {[%clk 0:00:01.5]} 42. Kc1 {[%clk 0:00:10.1]} 42... a3 {[%clk 0:00:02.4]} 43.
Kb1 {[%clk 0:00:09.2]} 43... Kc6 {[%clk 0:00:02.9]} 44. Nc8 {[%clk 0:00:08.7]}
44... Nc4 {[%clk 0:00:03.3]} 45. Ka2 {[%clk 0:00:08.3]} 45... Nd2 {[%clk
0:00:03.4]} 46. f4 {[%clk 0:00:07.8]} 46... Nf3 {[%clk 0:00:03.8]} 47. c3 {[%clk
0:00:08.1]} 47... Nxh2 {[%clk 0:00:03.8]} 48. Kxa3 {[%clk 0:00:08.7]} 48... Kd7
{[%clk 0:00:04]} 49. Na7 {[%clk 0:00:07.7]} 49... h5 {[%clk 0:00:03.5]} 50. c4
{[%clk 0:00:07.2]} 50... Ng4 {[%clk 0:00:03.9]} 51. c5 {[%clk 0:00:07.2]} 51...
h4 {[%clk 0:00:04.2]} 52. d5 {[%clk 0:00:06.8]} 52... h3 {[%clk 0:00:04.2]} 53.
c6+ {[%clk 0:00:07]} 53... Kd6 {[%clk 0:00:01.6]} 54. Nb5+ {[%clk 0:00:06.9]}
54... Kxd5 {[%clk 0:00:01.4]} 55. c7 {[%clk 0:00:07.2]} 55... h2 {[%clk
0:00:02]} 56. c8=Q {[%clk 0:00:07.6]} 56... h1=Q {[%clk 0:00:02.9]} 57. Qa8+
{[%clk 0:00:07.7]} 57... Kc4 {[%clk 0:00:02.8]} 58. Qxh1 {[%clk 0:00:08.6]}
58... Kxb5 {[%clk 0:00:03.5]} 59. Qh7 {[%clk 0:00:07.3]} 59... Nxf2 {[%clk
0:00:02.6]} 60. Qxg6 {[%clk 0:00:07.5]} 60... Nd3 {[%clk 0:00:02.9]} 61. Qxf5+
{[%clk 0:00:07.6]} 61... Nc5 {[%clk 0:00:03.4]} 62. Qd5 {[%clk 0:00:07.1]} 62...
Kb6 {[%clk 0:00:03.7]} 63. f5 {[%clk 0:00:07.6]} 63... Nb7 {[%clk 0:00:03.9]}
64. f6 {[%clk 0:00:07.8]} 1-0

[Event "Late-Titled-Tuesday-Blitz-May-14-2024"]
[Site "Chess.com"]
[Date "2024.05.14"]
[Round "10"]
[White "oskariot"]
[Black "xasid81"]
[Result "0-1"]
[WhiteElo "2775"]
[BlackElo "2643"]
[TimeControl "180+1"]
[EndTime "15:55:40 PDT"]
[Termination "xasid81 won on time"]

1. e4 {[%clk 0:03:00.9]} 1... a6 {[%clk 0:02:55.6]} 2. d4 {[%clk 0:03:00.3]}
2... c6 {[%clk 0:02:56.2]} 3. c3 {[%clk 0:02:56.6]} 3... d5 {[%clk 0:02:56.1]}
4. Nd2 {[%clk 0:02:57.2]} 4... dxe4 {[%clk 0:02:54.5]} 5. Nxe4 {[%clk
0:02:58.1]} 5... Nf6 {[%clk 0:02:54.8]} 6. Nxf6+ {[%clk 0:02:57]} 6... exf6
{[%clk 0:02:55.7]} 7. Bd3 {[%clk 0:02:57.7]} 7... Bd6 {[%clk 0:02:56]} 8. Qc2
{[%clk 0:02:56.4]} 8... h5 {[%clk 0:02:52.9]} 9. Ne2 {[%clk 0:02:55.9]} 9... O-O
{[%clk 0:02:51.7]} 10. Be3 {[%clk 0:02:55.9]} 10... Re8 {[%clk 0:02:50.9]} 11.
O-O-O {[%clk 0:02:55.8]} 11... h4 {[%clk 0:02:42.3]} 12. Kb1 {[%clk 0:02:54.6]}
12... Nd7 {[%clk 0:02:40.2]} 13. g4 {[%clk 0:02:43.7]} 13... Nf8 {[%clk
0:02:32.5]} 14. Rhg1 {[%clk 0:02:43.5]} 14... Bxh2 {[%clk 0:02:13.1]} 15. Rh1
{[%clk 0:02:40.8]} 15... Qc7 {[%clk 0:02:13.3]} 16. Bf5 {[%clk 0:02:11.4]} 16...
g5 {[%clk 0:02:01]} 17. d5 {[%clk 0:01:59.6]} 17... cxd5 {[%clk 0:01:14.5]} 18.
Nd4 {[%clk 0:01:52.4]} 18... Bf4 {[%clk 0:01:03.2]} 19. Bxc8 {[%clk 0:01:47.2]}
19... Raxc8 {[%clk 0:00:58.8]} 20. Nf5 {[%clk 0:01:47.4]} 20... Bxe3 {[%clk
0:00:54.1]} 21. fxe3 {[%clk 0:01:46.8]} 21... Qe5 {[%clk 0:00:52.5]} 22. Qb3
{[%clk 0:01:33.3]} 22... Ng6 {[%clk 0:00:48.2]} 23. Qxb7 {[%clk 0:01:15]} 23...
Rb8 {[%clk 0:00:37.2]} 24. Qxd5 {[%clk 0:01:00.6]} 24... Qxc3 {[%clk 0:00:36.5]}
25. Rh2 {[%clk 0:00:49.5]} 25... Qe5 {[%clk 0:00:31.5]} 26. Rhd2 {[%clk
0:00:14.8]} 26... Qxd5 {[%clk 0:00:26.1]} 27. Rxd5 {[%clk 0:00:15.7]} 27... Ne5
{[%clk 0:00:19.8]} 28. R5d4 {[%clk 0:00:15.4]} 28... Kh7 {[%clk 0:00:16.5]} 29.
Rc1 {[%clk 0:00:13.5]} 29... Rbd8 {[%clk 0:00:12.9]} 30. Ra4 {[%clk 0:00:11.5]}
30... Rd2 {[%clk 0:00:09.8]} 31. a3 {[%clk 0:00:07.8]} 31... Rg2 {[%clk
0:00:09.6]} 32. Nd4 {[%clk 0:00:06.6]} 32... Rxg4 {[%clk 0:00:08.5]} 33. Rxa6
{[%clk 0:00:07.2]} 33... Kg6 {[%clk 0:00:07.3]} 34. Rf1 {[%clk 0:00:07.7]} 34...
Nd7 {[%clk 0:00:05.6]} 35. Rd6 {[%clk 0:00:07.1]} 35... Re7 {[%clk 0:00:05]} 36.
Nf5 {[%clk 0:00:06.5]} 36... Re5 {[%clk 0:00:04.6]} 37. Nd4 {[%clk 0:00:06.3]}
37... Re7 {[%clk 0:00:04.7]} 38. Nc6 {[%clk 0:00:06.6]} 38... Re6 {[%clk
0:00:03.9]} 39. Rxd7 {[%clk 0:00:03]} 39... Rxc6 {[%clk 0:00:03.8]} 40. a4
{[%clk 0:00:03.7]} 40... Rg2 {[%clk 0:00:03.9]} 41. a5 {[%clk 0:00:03.2]} 41...
Rcc2 {[%clk 0:00:03.9]} 42. Rb7 {[%clk 0:00:03.8]} 42... Rcf2 {[%clk 0:00:03.6]}
43. Rc1 {[%clk 0:00:02.5]} 43... h3 {[%clk 0:00:03.2]} 44. a6 {[%clk 0:00:03.4]}
44... h2 {[%clk 0:00:03.9]} 45. a7 {[%clk 0:00:04]} 45... Rg1 {[%clk 0:00:04.5]}
46. a8=Q {[%clk 0:00:04.6]} 46... Rxc1+ {[%clk 0:00:04.1]} 47. Ka2 {[%clk
0:00:05.2]} 47... h1=Q {[%clk 0:00:04.1]} 48. Qg8+ {[%clk 0:00:04.6]} 48... Kf5
{[%clk 0:00:04.7]} 49. Rb5+ {[%clk 0:00:04.5]} 49... Kg4 {[%clk 0:00:04]} 50.
Rb4+ {[%clk 0:00:02.5]} 50... Kg3 {[%clk 0:00:03]} 51. Qb8+ {[%clk 0:00:02.5]}
51... Kg2 {[%clk 0:00:02.8]} 52. Qa8+ {[%clk 0:00:02.5]} 52... Kg1 {[%clk
0:00:02.8]} 53. Rg4+ {[%clk 0:00:03]} 53... Rg2 {[%clk 0:00:01.7]} 54. Rxg2+
{[%clk 0:00:02.2]} 54... Qxg2 {[%clk 0:00:02]} 55. Qa7 {[%clk 0:00:02.1]} 55...
Qc2 {[%clk 0:00:02.2]} 56. e4+ {[%clk 0:00:03]} 56... Kf1 {[%clk 0:00:02.7]} 57.
Qd4 {[%clk 0:00:02.9]} 57... Qb1+ {[%clk 0:00:02.8]} 58. Kb3 {[%clk 0:00:03.8]}
58... Qc2+ {[%clk 0:00:03]} 59. Ka2 {[%clk 0:00:04.2]} 59... Rd1 {[%clk
0:00:03.9]} 60. Qe3 {[%clk 0:00:03.7]} 60... Qa4+ {[%clk 0:00:03.9]} 61. Qa3
{[%clk 0:00:03.4]} 61... Qxa3+ {[%clk 0:00:04.5]} 62. Kxa3 {[%clk 0:00:04.3]}
62... Re1 {[%clk 0:00:05.4]} 63. e5 {[%clk 0:00:05.1]} 63... Re4 {[%clk
0:00:06.2]} 64. exf6 {[%clk 0:00:04.9]} 64... Rf4 {[%clk 0:00:06.9]} 0-1

[Event "Late-Titled-Tuesday-Blitz-May-14-2024"]
[Site "Chess.com"]
[Date "2024.05.14"]
[Round "10"]
[White "Jahonas"]
[Black "RianKapriaga"]
[Result "0-1"]
[WhiteElo "2373"]
[BlackElo "2299"]
[TimeControl "180+1"]
[EndTime "15:55:40 PDT"]
[Termination "RianKapriaga won by resignation"]

1. d4 {[%clk 0:03:00.9]} 1... Nf6 {[%clk 0:02:58.8]} 2. c4 {[%clk 0:03:00.9]}
2... e6 {[%clk 0:02:58.6]} 3. Nf3 {[%clk 0:03:00.8]} 3... d5 {[%clk 0:02:58.4]}
4. Bg5 {[%clk 0:03:00.6]} 4... Be7 {[%clk 0:02:57.9]} 5. Nbd2 {[%clk 0:03:00.2]}
5... O-O {[%clk 0:02:57.7]} 6. e3 {[%clk 0:03:00.6]} 6... Nbd7 {[%clk
0:02:55.7]} 7. c5 {[%clk 0:02:59.9]} 7... Ne4 {[%clk 0:02:50.7]} 8. Nxe4 {[%clk
0:02:56.9]} 8... dxe4 {[%clk 0:02:48.7]} 9. Bxe7 {[%clk 0:02:57.1]} 9... Qxe7
{[%clk 0:02:49]} 10. Nd2 {[%clk 0:02:57.4]} 10... e5 {[%clk 0:02:43.8]} 11. Nxe4
{[%clk 0:02:34.5]} 11... f5 {[%clk 0:02:42.5]} 12. Bc4+ {[%clk 0:02:29.5]} 12...
Kh8 {[%clk 0:02:41.7]} 13. Nc3 {[%clk 0:02:22.7]} 13... f4 {[%clk 0:02:20.9]}
14. Nd5 {[%clk 0:02:07.4]} 14... Qg5 {[%clk 0:02:18.8]} 15. O-O {[%clk
0:01:53.5]} 15... f3 {[%clk 0:02:06.1]} 16. g3 {[%clk 0:01:52.7]} 16... e4
{[%clk 0:01:52.9]} 17. Re1 {[%clk 0:01:48.5]} 17... c6 {[%clk 0:01:49.9]} 18.
Nf4 {[%clk 0:01:46.6]} 18... Nf6 {[%clk 0:01:47.2]} 19. h4 {[%clk 0:01:37.2]}
19... Qh6 {[%clk 0:01:38.7]} 20. Bf1 {[%clk 0:00:57.1]} 20... Ng4 {[%clk
0:01:22.5]} 21. Nh3 {[%clk 0:00:53.4]} 21... Be6 {[%clk 0:01:13.3]} 22. d5
{[%clk 0:00:52.5]} 22... cxd5 {[%clk 0:01:02.8]} 23. Qd4 {[%clk 0:00:47.8]}
23... Rad8 {[%clk 0:00:57.2]} 24. Rac1 {[%clk 0:00:45.7]} 24... Rc8 {[%clk
0:00:42.5]} 25. Ng5 {[%clk 0:00:41.3]} 25... Bg8 {[%clk 0:00:41]} 26. Bh3 {[%clk
0:00:40]} 26... Qh5 {[%clk 0:00:36.8]} 27. Bxg4 {[%clk 0:00:37.6]} 27... Qxg4
{[%clk 0:00:37.7]} 28. Kh2 {[%clk 0:00:26.1]} 28... Rf5 {[%clk 0:00:25.5]} 29.
Rh1 {[%clk 0:00:23.1]} 29... h6 {[%clk 0:00:21.6]} 30. Nh3 {[%clk 0:00:22.5]}
30... Be6 {[%clk 0:00:19.3]} 31. Kg1 {[%clk 0:00:21.9]} 31... Rh5 {[%clk
0:00:18.2]} 32. Nf4 {[%clk 0:00:21.4]} 32... Bf7 {[%clk 0:00:15.4]} 33. Nxh5
{[%clk 0:00:21.2]} 33... Qxh5 {[%clk 0:00:16.3]} 34. b4 {[%clk 0:00:21.1]} 34...
a6 {[%clk 0:00:14.9]} 35. a4 {[%clk 0:00:20.6]} 35... Be8 {[%clk 0:00:14.4]} 36.
Rd1 {[%clk 0:00:20.2]} 36... Rd8 {[%clk 0:00:13.3]} 37. Qa1 {[%clk 0:00:12]}
37... Kh7 {[%clk 0:00:11.2]} 38. Rd4 {[%clk 0:00:12.1]} 38... Qf5 {[%clk
0:00:10.4]} 39. Qd1 {[%clk 0:00:11.6]} 39... Bc6 {[%clk 0:00:09.2]} 40. Rh2
{[%clk 0:00:10]} 40... Rd7 {[%clk 0:00:08.3]} 41. Qc2 {[%clk 0:00:09.2]} 41...
Re7 {[%clk 0:00:08]} 42. Qb3 {[%clk 0:00:09.6]} 42... Re6 {[%clk 0:00:07.1]} 43.
b5 {[%clk 0:00:10]} 43... axb5 {[%clk 0:00:06.2]} 44. axb5 {[%clk 0:00:10.9]}
44... Be8 {[%clk 0:00:05.8]} 45. Qxd5 {[%clk 0:00:10.9]} 45... Qxd5 {[%clk
0:00:04.8]} 46. Rxd5 {[%clk 0:00:11.8]} 46... Bxb5 {[%clk 0:00:05.3]} 47. Rd6
{[%clk 0:00:12.3]} 47... Re5 {[%clk 0:00:05]} 48. Rb6 {[%clk 0:00:11.1]} 48...
Rxc5 {[%clk 0:00:04.6]} 49. Rh1 {[%clk 0:00:10.9]} 49... Rc1+ {[%clk 0:00:04.5]}
50. Kh2 {[%clk 0:00:11.3]} 50... Rc2 {[%clk 0:00:04.7]} 51. g4 {[%clk
0:00:11.2]} 51... Rxf2+ {[%clk 0:00:05]} 52. Kg3 {[%clk 0:00:11.7]} 52... Rg2+
{[%clk 0:00:05.9]} 53. Kf4 {[%clk 0:00:12.2]} 53... Bd3 {[%clk 0:00:06.6]} 54.
Rxb7 {[%clk 0:00:12.1]} 54... f2 {[%clk 0:00:07.5]} 55. Re7 {[%clk 0:00:11.5]}
55... f1=Q+ {[%clk 0:00:08.4]} 56. Rxf1 {[%clk 0:00:11.6]} 56... Bxf1 {[%clk
0:00:09.3]} 57. Rxe4 {[%clk 0:00:12.3]} 57... Rf2+ {[%clk 0:00:09.6]} 58. Kg3
{[%clk 0:00:12.4]} 58... Re2 {[%clk 0:00:09.5]} 59. Rf4 {[%clk 0:00:11.2]} 59...
Bg2 {[%clk 0:00:08.9]} 60. Rf2 {[%clk 0:00:11]} 60... Rxf2 {[%clk 0:00:08.3]}
61. Kxf2 {[%clk 0:00:11.9]} 61... Be4 {[%clk 0:00:08.9]} 62. Kg3 {[%clk
0:00:12.8]} 62... g5 {[%clk 0:00:09]} 63. hxg5 {[%clk 0:00:13]} 63... hxg5
{[%clk 0:00:09.9]} 64. Kf2 {[%clk 0:00:12.4]} 64... Kg6 {[%clk 0:00:10.8]} 65.
Ke2 {[%clk 0:00:13.3]} 65... Kf6 {[%clk 0:00:11.6]} 66. Kd2 {[%clk 0:00:13.9]}
66... Ke5 {[%clk 0:00:12.5]} 67. Kc3 {[%clk 0:00:14.8]} 67... Kd5 {[%clk
0:00:12.7]} 68. Kb4 {[%clk 0:00:15.1]} 68... Bg6 {[%clk 0:00:12.9]} 69. Kc3
{[%clk 0:00:16]} 69... Ke4 {[%clk 0:00:13.1]} 70. Kd2 {[%clk 0:00:16.5]} 70...
Bf7 {[%clk 0:00:12.9]} 0-1